fUSD/lending_fUSD_20260601
["ID","MTS","AMOUNT","RATE_DAILY","PERIOD"]
[423690092,1780312255000,-2175.10937727,0.00015,2]
[423690072,1780312255000,-3202658.05330994,0.00015,2]
[423690045,1780312255000,-151.0,0.00014993,2]
[423690073,1780312255000,-238819.28351669,0.00015,2]
[423690050,1780312255000,-781.56714637,0.00014995,2]
[423690046,1780312255000,-151.0,0.00014993,2]
[423690047,1780312255000,-151.0,0.00014993,2]
[423690048,1780312255000,-378.0,0.00014993,2]
[423690051,1780312255000,-1628373.4450514,0.00014996,2]
[423690053,1780312255000,-4918.0528415,0.00014996,2]
[423690052,1780312255000,-14219.9982478,0.00014996,2]
[423690104,1780312255000,-691.139193,0.00015,2]
[423690061,1780312255000,-691.139193,0.00014996,2]
[423690064,1780312255000,-151.0,0.00014996,2]
[423690054,1780312255000,-1208377.2978077,0.00014996,2]
[423690062,1780312255000,-691.139193,0.00014996,2]
[423690055,1780312255000,-151.0,0.00014996,2]
[423690063,1780312255000,-691.139193,0.00014996,2]
[423690057,1780312255000,-151.0,0.00014996,2]
[423690059,1780312255000,-151.0,0.00014996,2]
[423690076,1780312255000,-189.88,0.00015,2]
[423690071,1780312255000,-990.02,0.00015,2]
[423690070,1780312255000,-428269.91080638,0.00015,2]
[423690068,1780312255000,-151.0,0.00014997,2]
[423690069,1780312255000,-300.0,0.00014999,2]
[423690074,1780312255000,-964.51664297,0.00015,7]
[423690067,1780312255000,-151.0,0.00014997,2]
[423690065,1780312255000,-151.0,0.00014996,2]
[423690056,1780312255000,-151.0,0.00014996,2]
[423690058,1780312255000,-151.0,0.00014996,2]
[423690060,1780312255000,-691.139193,0.00014996,2]
[423690066,1780312255000,-151.0,0.00014997,2]
[423690141,1780312256000,-350.0,0.00015337,2]
[423690146,1780312256000,-258.337501,0.0001539,2]
[423690145,1780312256000,-503.85967758,0.00015383,2]
[423690147,1780312256000,-350.0,0.00015393,2]
[423690144,1780312256000,-15000.0,0.00015361,2]
[423690139,1780312256000,-503.85967758,0.00015312,2]
[423690140,1780312256000,-503.85967758,0.00015329,2]
[423690137,1780312256000,-2000.0,0.000153,2]
[423690134,1780312256000,-503.85967758,0.00015259,2]
[423690138,1780312256000,-27463.61,0.0001531,2]
[423690142,1780312256000,-503.85967758,0.00015352,2]
[423690148,1780312256000,-350.0,0.00015395,2]
[423690160,1780312256000,-503.85967758,0.00015601,2]
[423690149,1780312256000,-503.85967758,0.00015414,2]
[423690150,1780312256000,-503.85967758,0.00015435,2]
[423690151,1780312256000,-741.83,0.00015464,2]
[423690153,1780312256000,-503.85967758,0.00015474,2]
[423690163,1780312256000,-503.85967758,0.00015657,2]
[423690164,1780312256000,-503.85967758,0.00015751,2]
[423690152,1780312256000,-1638.73,0.00015464,2]
[423690159,1780312256000,-2000.0,0.000156,2]
[423690158,1780312256000,-9035.0,0.00015595,2]
[423690155,1780312256000,-503.85967758,0.00015533,2]
[423690157,1780312256000,-503.85967758,0.00015566,2]
[423690154,1780312256000,-350.0,0.00015503,2]
[423690131,1780312256000,-1488.151599,0.00015068,2]
[423690143,1780312256000,-503.85967758,0.00015358,2]
[423690136,1780312256000,-500.0,0.000153,3]
[423690118,1780312256000,-1488.151599,0.00015068,2]
[423690133,1780312256000,-503.85967758,0.00015199,2]
[423690162,1780312256000,-3784.91071764,0.00015648,2]
[423690106,1780312256000,-691.139193,0.00015,2]
[423690105,1780312256000,-691.139193,0.00015,2]
[423690107,1780312256000,-691.139193,0.00015,2]
[423690108,1780312256000,-691.139193,0.00015,2]
[423690109,1780312256000,-691.139193,0.00015,2]
[423690112,1780312256000,-151.0,0.00015,2]
[423690110,1780312256000,-691.139187,0.00015,2]
[423690111,1780312256000,-151.0,0.00015,2]
[423690113,1780312256000,-151.0,0.00015,2]
[423690119,1780312256000,-1488.151599,0.00015068,2]
[423690116,1780312256000,-1488.151599,0.00015068,2]
[423690124,1780312256000,-1488.151599,0.00015068,2]
[423690123,1780312256000,-1488.151599,0.00015068,2]
[423690114,1780312256000,-151.0,0.00015,2]
[423690120,1780312256000,-1488.151599,0.00015068,2]
[423690117,1780312256000,-1488.151599,0.00015068,2]
[423690121,1780312256000,-1488.151599,0.00015068,2]
[423690122,1780312256000,-1488.151599,0.00015068,2]
[423690115,1780312256000,-354.74978975,0.00015021,2]
[423690125,1780312256000,-1488.151599,0.00015068,2]
[423690126,1780312256000,-1488.151599,0.00015068,2]
[423690127,1780312256000,-1488.151599,0.00015068,2]
[423690129,1780312256000,-1488.151599,0.00015068,2]
[423690130,1780312256000,-1488.151599,0.00015068,2]
[423690135,1780312256000,-4208.74625051,0.00015272,2]
[423690128,1780312256000,-1488.151599,0.00015068,2]
[423690132,1780312256000,-503.85967758,0.00015154,2]
[423690161,1780312256000,-350.0,0.00015647,2]
[423690156,1780312256000,-503.85967758,0.00015562,2]
[423690167,1780312256000,-350.0,0.0001593,2]
[423690198,1780312256000,-650.148347,0.00016438,2]
[423690196,1780312256000,-650.148347,0.00016438,2]
[423690197,1780312256000,-650.148347,0.00016438,2]
[423690202,1780312256000,-650.148347,0.00016438,2]
[423690212,1780312256000,-151.0,0.00016438,2]
[423690213,1780312256000,-235.425028,0.00016438,2]
[423690201,1780312256000,-650.148347,0.00016438,2]
[423690203,1780312256000,-650.148347,0.00016438,2]
[423690206,1780312256000,-650.148347,0.00016438,2]
[423690211,1780312256000,-151.0,0.00016438,2]
[423690207,1780312256000,-650.148347,0.00016438,2]
[423690208,1780312256000,-650.148347,0.00016438,2]
[423690204,1780312256000,-650.148347,0.00016438,2]
[423690195,1780312256000,-650.148347,0.00016438,2]
[423690210,1780312256000,-650.148347,0.00016438,2]
[423690214,1780312256000,-746.619018,0.00016438,2]
[423690215,1780312256000,-746.619018,0.00016438,2]
[423690216,1780312256000,-746.619018,0.00016438,2]
[423690217,1780312256000,-746.619018,0.00016438,2]
[423690218,1780312256000,-746.619018,0.00016438,2]
[423690219,1780312256000,-746.619018,0.00016438,2]
[423690221,1780312256000,-746.619018,0.00016438,2]
[423690220,1780312256000,-746.619018,0.00016438,2]
[423690223,1780312256000,-746.619018,0.00016438,2]
[423690225,1780312256000,-746.619018,0.00016438,2]
[423690222,1780312256000,-746.619018,0.00016438,2]
[423690165,1780312256000,-500.0,0.00015786,2]
[423690224,1780312256000,-746.619018,0.00016438,2]
[423690209,1780312256000,-650.148347,0.00016438,2]
[423690194,1780312256000,-193.06215961,0.00016438,2]
[423690205,1780312256000,-650.148347,0.00016438,2]
[423690191,1780312256000,-210.17855018,0.00016438,2]
[423690193,1780312256000,-1138.675744,0.00016438,2]
[423690175,1780312256000,-3551.0,0.00016105,2]
[423690176,1780312256000,-525.0,0.00016105,2]
[423690174,1780312256000,-1357.0,0.00016105,2]
[423690171,1780312256000,-500.0,0.00016096,2]
[423690172,1780312256000,-500.0,0.00016096,2]
[423690173,1780312256000,-1400.0,0.00016096,2]
[423690168,1780312256000,-503.85967758,0.00015976,2]
[423690170,1780312256000,-300.0,0.00016,2]
[423690169,1780312256000,-177.4194,0.00016,2]
[423690178,1780312256000,-9999.99,0.00016116,2]
[423690177,1780312256000,-196.60665953,0.00016114,2]
[423690179,1780312256000,-350.0,0.00016132,2]
[423690180,1780312256000,-1226.0,0.00016178,2]
[423690166,1780312256000,-417.51563554,0.00015898,2]
[423690183,1780312256000,-150.0,0.00016192,2]
[423690184,1780312256000,-500.0,0.000162,3]
[423690188,1780312256000,-799.97479174,0.00016352,2]
[423690190,1780312256000,-1346.3,0.00016438,2]
[423690200,1780312256000,-650.148347,0.00016438,2]
[423690199,1780312256000,-650.148347,0.00016438,2]
[423690189,1780312256000,-500.0,0.000164,3]
[423690192,1780312256000,-170.90562245,0.00016438,2]
[423690187,1780312256000,-523.96436601,0.00016316,2]
[423690186,1780312256000,-350.0,0.00016237,2]
[423690185,1780312256000,-381.43088704,0.00016202,2]
[423690182,1780312256000,-932.0,0.00016181,2]
[423690181,1780312256000,-6068.0,0.00016181,2]
[423690268,1780312257000,-487.03657759,0.00018591,2]
[423690269,1780312257000,-300.0,0.00018689,2]
[423690280,1780312257000,-151.0,0.00018936,2]
[423690258,1780312257000,-533.0,0.0001805,2]
[423690274,1780312257000,-151.0,0.00018936,2]
[423690256,1780312257000,-421.0,0.0001805,2]
[423690264,1780312257000,-157.09,0.00018286,2]
[423690261,1780312257000,-656.0,0.0001805,2]
[423690259,1780312257000,-371.0,0.0001805,2]
[423690257,1780312257000,-3146.0,0.0001805,2]
[423690270,1780312257000,-500.0,0.00018836,7]
[423690265,1780312257000,-2226.9,0.000184,2]
[423690263,1780312257000,-706.0,0.0001805,2]
[423690285,1780312257000,-743.50770149,0.00018936,2]
[423690267,1780312257000,-1400.0,0.00018562,7]
[423690271,1780312257000,-500.0,0.00018836,7]
[423690272,1780312257000,-151.0,0.00018936,2]
[423690273,1780312257000,-151.0,0.00018936,2]
[423690276,1780312257000,-578.20924308,0.00018936,2]
[423690275,1780312257000,-151.0,0.00018936,2]
[423690278,1780312257000,-151.0,0.00018936,2]
[423690284,1780312257000,-151.0,0.00018936,2]
[423690277,1780312257000,-151.0,0.00018936,2]
[423690286,1780312257000,-721.12765534,0.00018936,2]
[423690279,1780312257000,-693.39197629,0.00018936,2]
[423690281,1780312257000,-151.0,0.00018936,2]
[423690260,1780312257000,-1681.0,0.0001805,2]
[423690266,1780312257000,-1346.3,0.0001841,2]
[423690253,1780312257000,-434.0,0.0001805,2]
[423690237,1780312257000,-194.65,0.00016767,2]
[423690255,1780312257000,-1755.0,0.0001805,2]
[423690283,1780312257000,-151.0,0.00018936,2]
[423690227,1780312257000,-746.619018,0.00016438,2]
[423690226,1780312257000,-746.619018,0.00016438,2]
[423690228,1780312257000,-746.619018,0.00016438,2]
[423690229,1780312257000,-746.619018,0.00016438,2]
[423690230,1780312257000,-500.0,0.000165,3]
[423690232,1780312257000,-1000.0,0.000165,3]
[423690233,1780312257000,-957.69,0.000166,7]
[423690234,1780312257000,-500.0,0.00016685,2]
[423690231,1780312257000,-500.0,0.000165,5]
[423690235,1780312257000,-500.0,0.000167,4]
[423690236,1780312257000,-159.23,0.00016767,2]
[423690238,1780312257000,-523.96436601,0.0001677,2]
[423690251,1780312257000,-211.149415,0.00018,2]
[423690242,1780312257000,-275.0,0.00016932,2]
[423690246,1780312257000,-167.93318385,0.00017572,2]
[423690244,1780312257000,-1400.0,0.00017466,7]
[423690247,1780312257000,-1230.64,0.00017572,2]
[423690240,1780312257000,-201.97385028,0.000169,30]
[423690241,1780312257000,-300.0,0.00016921,2]
[423690243,1780312257000,-8483.0,0.00017155,2]
[423690250,1780312257000,-350.0,0.00018,2]
[423690239,1780312257000,-990.02,0.000169,2]
[423690248,1780312257000,-799.97479174,0.00017715,2]
[423690249,1780312257000,-1170.74505945,0.00018,2]
[423690262,1780312257000,-1197.0,0.0001805,2]
[423690252,1780312257000,-669.0,0.0001805,2]
[423690254,1780312257000,-1828.0,0.0001805,2]
[423690245,1780312257000,-167.93318385,0.00017572,2]
[423690282,1780312257000,-151.0,0.00018936,2]
[423690302,1780312257000,-151.0,0.00018936,2]
[423690292,1780312257000,-151.0,0.00018936,2]
[423690320,1780312257000,-746.619018,0.00019023,2]
[423690322,1780312257000,-746.619018,0.00019023,2]
[423690325,1780312257000,-669.0,0.0001905,2]
[423690324,1780312257000,-745.65223615,0.00019046,2]
[423690327,1780312257000,-1828.0,0.0001905,2]
[423690337,1780312257000,-799.97479174,0.00019078,2]
[423690326,1780312257000,-434.0,0.0001905,2]
[423690328,1780312257000,-1755.0,0.0001905,2]
[423690331,1780312257000,-533.0,0.0001905,2]
[423690335,1780312257000,-1197.0,0.0001905,2]
[423690336,1780312257000,-706.0,0.0001905,2]
[423690330,1780312257000,-3146.0,0.0001905,2]
[423690332,1780312257000,-371.0,0.0001905,2]
[423690334,1780312257000,-656.0,0.0001905,2]
[423690329,1780312257000,-421.0,0.0001905,2]
[423690333,1780312257000,-1681.0,0.0001905,2]
[423690340,1780312257000,-3551.0,0.00019105,2]
[423690338,1780312257000,-773.24136889,0.00019101,2]
[423690341,1780312257000,-525.0,0.00019105,2]
[423690342,1780312257000,-801.85129954,0.00019156,2]
[423690343,1780312257000,-233.65677646,0.00019158,2]
[423690348,1780312257000,-2383.135077,0.00019159,2]
[423690345,1780312257000,-2383.135077,0.00019159,2]
[423690346,1780312257000,-2383.135077,0.00019159,2]
[423690344,1780312257000,-233.65677646,0.00019158,2]
[423690347,1780312257000,-2383.135077,0.00019159,2]
[423690287,1780312257000,-151.0,0.00018936,2]
[423690321,1780312257000,-746.619018,0.00019023,2]
[423690317,1780312257000,-650.148347,0.00019023,2]
[423690339,1780312257000,-1357.0,0.00019105,2]
[423690323,1780312257000,-746.619026,0.00019023,2]
[423690318,1780312257000,-650.148347,0.00019023,2]
[423690291,1780312257000,-151.0,0.00018936,2]
[423690290,1780312257000,-151.0,0.00018936,2]
[423690289,1780312257000,-151.0,0.00018936,2]
[423690288,1780312257000,-151.0,0.00018936,2]
[423690293,1780312257000,-151.0,0.00018936,2]
[423690294,1780312257000,-151.0,0.00018936,2]
[423690296,1780312257000,-2080.17592889,0.00018936,2]
[423690295,1780312257000,-204.20298848,0.00018936,2]
[423690297,1780312257000,-9552.16786547,0.00018936,2]
[423690299,1780312257000,-151.0,0.00018936,2]
[423690309,1780312257000,-240.984577,0.00019,2]
[423690300,1780312257000,-1428.38747117,0.00018936,2]
[423690310,1780312257000,-71823.2336286,0.00019,2]
[423690298,1780312257000,-151.0,0.00018936,2]
[423690312,1780312257000,-1488.151599,0.00019,2]
[423690314,1780312257000,-1488.151599,0.00019,2]
[423690311,1780312257000,-1465.73406139,0.00019,2]
[423690316,1780312257000,-650.148347,0.00019023,2]
[423690319,1780312257000,-650.148344,0.00019023,2]
[423690313,1780312257000,-1488.151599,0.00019,2]
[423690308,1780312257000,-255.72229011,0.00019,2]
[423690315,1780312257000,-1488.151605,0.00019,2]
[423690301,1780312257000,-151.0,0.00018936,2]
[423690306,1780312257000,-4661.54256534,0.00019,5]
[423690305,1780312257000,-719.04747942,0.00018991,2]
[423690307,1780312257000,-990.02,0.00019,2]
[423690303,1780312257000,-151.0,0.00018936,2]
[423690304,1780312257000,-2000.0,0.00018971,7]
[423690374,1780312258000,-151.0,0.00019178,2]
[423690377,1780312258000,-151.0,0.00019178,2]
[423690375,1780312258000,-151.0,0.00019178,2]
[423690376,1780312258000,-151.0,0.00019178,2]
[423690378,1780312258000,-262.785484,0.00019178,2]
[423690385,1780312258000,-150.0,0.0001919,3]
[423690382,1780312258000,-153.832398,0.00019178,2]
[423690384,1780312258000,-932.0,0.00019181,2]
[423690379,1780312258000,-151.0,0.00019178,2]
[423690387,1780312258000,-862.28603014,0.00019266,2]
[423690381,1780312258000,-151.0,0.00019178,2]
[423690383,1780312258000,-6068.0,0.00019181,2]
[423690386,1780312258000,-831.51979762,0.00019211,2]
[423690390,1780312258000,-961.58486558,0.00019431,2]
[423690391,1780312258000,-174.11467,0.00019452,2]
[423690388,1780312258000,-894.19061325,0.00019321,2]
[423690392,1780312258000,-1576.0,0.00019452,2]
[423690372,1780312258000,-151.0,0.00019178,2]
[423690389,1780312258000,-927.27566594,0.00019376,2]
[423690380,1780312258000,-151.0,0.00019178,2]
[423690369,1780312258000,-151.0,0.00019178,2]
[423690356,1780312258000,-2383.135077,0.00019159,2]
[423690371,1780312258000,-151.0,0.00019178,2]
[423690395,1780312258000,-9905.59807649,0.00019484,2]
[423690350,1780312258000,-2383.135077,0.00019159,2]
[423690349,1780312258000,-2383.135077,0.00019159,2]
[423690352,1780312258000,-2383.135077,0.00019159,2]
[423690353,1780312258000,-2383.135077,0.00019159,2]
[423690351,1780312258000,-2383.135077,0.00019159,2]
[423690354,1780312258000,-2383.135077,0.00019159,2]
[423690355,1780312258000,-2383.135077,0.00019159,2]
[423690357,1780312258000,-2383.135077,0.00019159,2]
[423690358,1780312258000,-2383.135077,0.00019159,2]
[423690361,1780312258000,-2383.135077,0.00019159,2]
[423690359,1780312258000,-2383.135077,0.00019159,2]
[423690360,1780312258000,-2383.135077,0.00019159,2]
[423690362,1780312258000,-2383.135077,0.00019159,2]
[423690364,1780312258000,-2383.13507,0.00019159,2]
[423690366,1780312258000,-151.0,0.00019178,2]
[423690365,1780312258000,-1226.0,0.00019178,2]
[423690363,1780312258000,-2383.135077,0.00019159,2]
[423690368,1780312258000,-151.0,0.00019178,2]
[423690367,1780312258000,-151.0,0.00019178,2]
[423690370,1780312258000,-151.0,0.00019178,2]
[423690373,1780312258000,-151.0,0.00019178,2]
[423690393,1780312258000,-410.21529461,0.00019484,2]
[423690402,1780312258000,-5287.0021951,0.0002,2]
[423690394,1780312258000,-2157.14243826,0.00019484,2]
[423690421,1780312258000,-10272.10520532,0.00020032,2]
[423690422,1780312258000,-1536.04360648,0.00020032,2]
[423690432,1780312258000,-656.0,0.0002005,2]
[423690423,1780312258000,-669.0,0.0002005,2]
[423690427,1780312258000,-421.0,0.0002005,2]
[423690424,1780312258000,-434.0,0.0002005,2]
[423690429,1780312258000,-533.0,0.0002005,2]
[423690425,1780312258000,-1828.0,0.0002005,2]
[423690426,1780312258000,-1755.0,0.0002005,2]
[423690431,1780312258000,-1681.0,0.0002005,2]
[423690428,1780312258000,-3146.0,0.0002005,2]
[423690434,1780312258000,-706.0,0.0002005,2]
[423690436,1780312258000,-270.13475721,0.000202,2]
[423690437,1780312258000,-339.27233648,0.000202,2]
[423690439,1780312258000,-1346.3,0.00020381,2]
[423690438,1780312258000,-1576.0,0.00020273,2]
[423690433,1780312258000,-1197.0,0.0002005,2]
[423690435,1780312258000,-300.0,0.000201,10]
[423690440,1780312258000,-270.13475721,0.000204,2]
[423690396,1780312258000,-1481.2378076,0.00019484,2]
[423690430,1780312258000,-371.0,0.0002005,2]
[423690420,1780312258000,-2236.95670847,0.00020032,2]
[423690441,1780312258000,-10652.17309792,0.0002058,2]
[423690415,1780312258000,-194.674,0.0002,2]
[423690418,1780312258000,-200.0,0.0002,2]
[423690408,1780312258000,-299.99999901,0.0002,2]
[423690400,1780312258000,-763.72277884,0.00019597,2]
[423690399,1780312258000,-450.0,0.00019499,7]
[423690401,1780312258000,-153.61158278,0.00019676,2]
[423690397,1780312258000,-997.16350561,0.00019486,2]
[423690406,1780312258000,-1060.36861277,0.0002,2]
[423690403,1780312258000,-260.00122862,0.0002,2]
[423690407,1780312258000,-2660.12973402,0.0002,2]
[423690404,1780312258000,-1313.64007294,0.0002,2]
[423690398,1780312258000,-1050.0,0.00019499,2]
[423690411,1780312258000,-3439.0,0.0002,2]
[423690409,1780312258000,-270.13475721,0.0002,2]
[423690410,1780312258000,-1048.798587,0.0002,2]
[423690414,1780312258000,-400.0,0.0002,2]
[423690413,1780312258000,-163.8845693,0.0002,14]
[423690417,1780312258000,-293.0,0.0002,5]
[423690412,1780312258000,-200.0,0.0002,10]
[423690416,1780312258000,-206.69,0.0002,2]
[423690419,1780312258000,-6002.46,0.0002,2]
[423690405,1780312258000,-200.0,0.0002,2]
[423690471,1780312259000,-1681.0,0.0002105,2]
[423690474,1780312259000,-706.0,0.0002105,2]
[423690466,1780312259000,-1755.0,0.0002105,2]
[423690470,1780312259000,-371.0,0.0002105,2]
[423690468,1780312259000,-3146.0,0.0002105,2]
[423690467,1780312259000,-421.0,0.0002105,2]
[423690475,1780312259000,-459.0,0.0002106,7]
[423690473,1780312259000,-1197.0,0.0002105,2]
[423690478,1780312259000,-798.07,0.000211,7]
[423690472,1780312259000,-656.0,0.0002105,2]
[423690487,1780312259000,-1230.64,0.00021273,2]
[423690484,1780312259000,-1638.73,0.00021273,2]
[423690477,1780312259000,-702.0,0.00021095,2]
[423690476,1780312259000,-162.76750554,0.00021095,2]
[423690479,1780312259000,-2405.55389863,0.00021128,2]
[423690481,1780312259000,-1651.81367706,0.00021128,2]
[423690480,1780312259000,-11106.76787305,0.00021128,2]
[423690465,1780312259000,-1828.0,0.0002105,2]
[423690469,1780312259000,-533.0,0.0002105,2]
[423690464,1780312259000,-434.0,0.0002105,2]
[423690453,1780312259000,-15000.0,0.00021,2]
[423690460,1780312259000,-507.50100678,0.00021028,7]
[423690442,1780312259000,-2319.72410669,0.0002058,2]
[423690443,1780312259000,-1592.87721992,0.0002058,2]
[423690444,1780312259000,-270.13475721,0.000206,2]
[423690446,1780312259000,-1400.0,0.00020754,7]
[423690454,1780312259000,-6111.0,0.00021,2]
[423690445,1780312259000,-2688.60698181,0.000207,2]
[423690448,1780312259000,-270.13475721,0.000208,2]
[423690455,1780312259000,-15000.0,0.00021,2]
[423690447,1780312259000,-990.02,0.000208,2]
[423690449,1780312259000,-451.0,0.00020834,2]
[423690450,1780312259000,-3416.64330529,0.00021,7]
[423690451,1780312259000,-15000.0,0.00021,2]
[423690452,1780312259000,-6111.0,0.00021,2]
[423690457,1780312259000,-15000.0,0.00021,2]
[423690456,1780312259000,-6111.0,0.00021,2]
[423690459,1780312259000,-215.65015035,0.00021,7]
[423690461,1780312259000,-500.0,0.00021028,7]
[423690462,1780312259000,-261.9404953,0.0002105,2]
[423690458,1780312259000,-6111.0,0.00021,2]
[423690463,1780312259000,-669.0,0.0002105,2]
[423690485,1780312259000,-244.02,0.00021273,2]
[423690495,1780312259000,-1712.93078311,0.00021676,2]
[423690486,1780312259000,-16865.34,0.00021273,2]
[423690511,1780312259000,-1755.0,0.0002205,2]
[423690514,1780312259000,-533.0,0.0002205,2]
[423690516,1780312259000,-1681.0,0.0002205,2]
[423690517,1780312259000,-656.0,0.0002205,2]
[423690521,1780312259000,-1357.0,0.00022105,2]
[423690520,1780312259000,-528.18666344,0.000221,7]
[423690513,1780312259000,-3146.0,0.0002205,2]
[423690515,1780312259000,-371.0,0.0002205,2]
[423690512,1780312259000,-421.0,0.0002205,2]
[423690518,1780312259000,-1197.0,0.0002205,2]
[423690524,1780312259000,-1226.0,0.00022178,2]
[423690522,1780312259000,-3551.0,0.00022105,2]
[423690526,1780312259000,-932.0,0.00022181,2]
[423690527,1780312259000,-308.24,0.000222,2]
[423690525,1780312259000,-6068.0,0.00022181,2]
[423690523,1780312259000,-525.0,0.00022105,2]
[423690528,1780312259000,-2586.85809042,0.00022224,2]
[423690483,1780312259000,-194.65,0.00021205,2]
[423690519,1780312259000,-706.0,0.0002205,2]
[423690510,1780312259000,-1828.0,0.0002205,2]
[423690507,1780312259000,-173.0,0.00022,2]
[423690497,1780312259000,-451.0,0.00021876,2]
[423690508,1780312259000,-669.0,0.0002205,2]
[423690482,1780312259000,-159.23,0.00021205,2]
[423690488,1780312259000,-4918.0528415,0.00021471,2]
[423690491,1780312259000,-18291.00150325,0.000215,2]
[423690490,1780312259000,-4918.0528415,0.00021494,2]
[423690489,1780312259000,-14219.9982478,0.00021494,2]
[423690498,1780312259000,-215.65015035,0.00021882,2]
[423690496,1780312259000,-6002.46,0.00021773,2]
[423690492,1780312259000,-599.60298507,0.00021675,2]
[423690499,1780312259000,-1006.96,0.00021918,2]
[423690494,1780312259000,-2494.55939288,0.00021676,2]
[423690500,1780312259000,-5000.0,0.00021918,2]
[423690501,1780312259000,-200.0,0.00021918,2]
[423690502,1780312259000,-3706.59542726,0.00022,10]
[423690503,1780312259000,-815.21277686,0.00022,7]
[423690509,1780312259000,-434.0,0.0002205,2]
[423690504,1780312259000,-450.0,0.00022,2]
[423690505,1780312259000,-180.17,0.00022,30]
[423690506,1780312259000,-867.64,0.00022,2]
[423690493,1780312259000,-571.27323327,0.00021675,2]
[423690562,1780312260000,-1211.78091631,0.0002305,2]
[423690566,1780312260000,-290.3196055,0.000232,2]
[423690564,1780312260000,-507.40807909,0.00023166,7]
[423690563,1780312260000,-713.53095286,0.0002305,2]
[423690559,1780312260000,-383.45074324,0.0002305,2]
[423690565,1780312260000,-286.30632937,0.00023199,2]
[423690561,1780312260000,-663.72412372,0.0002305,2]
[423690557,1780312260000,-3157.93836112,0.0002305,2]
[423690556,1780312260000,-431.63813091,0.0002305,2]
[423690567,1780312260000,-500.0,0.0002322,7]
[423690560,1780312260000,-1689.30352785,0.0002305,2]
[423690568,1780312260000,-200.0,0.0002327,2]
[423690579,1780312260000,-209.21103511,0.00024,7]
[423690570,1780312260000,-1910.18787185,0.0002332,2]
[423690571,1780312260000,-1173.53545887,0.000235,2]
[423690572,1780312260000,-6002.46,0.00023547,2]
[423690574,1780312260000,-1980.8648231,0.00023868,2]
[423690582,1780312260000,-3761.85599519,0.0002421,2]
[423690576,1780312260000,-3600.0,0.00024,2]
[423690575,1780312260000,-1039.53405848,0.00024,2]
[423690573,1780312260000,-2884.75459676,0.00023868,2]
[423690578,1780312260000,-500.0,0.00024,2]
[423690555,1780312260000,-1764.1352666,0.0002305,2]
[423690581,1780312260000,-741.83,0.00024174,2]
[423690569,1780312260000,-2781.82699784,0.0002332,2]
[423690558,1780312260000,-547.08824232,0.0002305,2]
[423690544,1780312260000,-1400.0,0.00022946,7]
[423690553,1780312260000,-440.65001271,0.0002305,2]
[423690529,1780312260000,-1776.30922209,0.00022224,2]
[423690530,1780312260000,-990.02,0.000223,7]
[423690532,1780312260000,-292.92276182,0.00022407,2]
[423690531,1780312260000,-1346.3,0.00022353,2]
[423690535,1780312260000,-1814.02,0.00022466,2]
[423690536,1780312260000,-2143.47,0.00022466,2]
[423690533,1780312260000,-292.92276181,0.00022407,2]
[423690534,1780312260000,-292.92276181,0.00022407,2]
[423690538,1780312260000,-200.0,0.00022479,2]
[423690537,1780312260000,-1663.93,0.00022466,2]
[423690539,1780312260000,-10275.72267183,0.000225,2]
[423690554,1780312260000,-1845.35216406,0.0002305,2]
[423690540,1780312260000,-244.02,0.00022691,2]
[423690542,1780312260000,-2682.57183977,0.00022772,2]
[423690543,1780312260000,-1842.0326633,0.00022772,2]
[423690577,1780312260000,-1256.97154961,0.00024,2]